fUST/lending_fUST_20240329
["ID","MTS","AMOUNT","RATE_DAILY","PERIOD"]
[320883455,1711662656345,-202.0622477,0.000548,60]
[320883456,1711662656354,-202.0622477,0.000548,60]
[320883457,1711662656365,-202.0622477,0.000548,60]
[320883458,1711662656374,-166.666666,0.00055192,2]
[320883459,1711662656382,-150.0,0.00055299,60]
[320883460,1711662656392,-150.93962415,0.00055406,2]
[320883461,1711662656401,-301.8792483,0.00056337,4]
[320883462,1711662656410,-166.666666,0.00056619,2]
[320883463,1711662656419,-153.0,0.00056741,2]
[320883464,1711662656428,-153.0,0.00056878,2]
[320883465,1711662656437,-603.7584966,0.00057284,7]
[320883466,1711662656446,-166.666666,0.00058046,2]
[320883467,1711662656455,-166.666666,0.00059472,2]
[320883468,1711662656464,-4269.0,0.0005997,35]
[320883469,1711662656473,-4269.0,0.0005998,35]
[320883470,1711662656483,-4269.0,0.0005999,35]
[320883471,1711662656492,-240.25794224,0.00059999,120]
[320883472,1711662656501,-318.57613283,0.00059999,120]
[320883473,1711662656510,-446.30062652,0.00059999,120]
[320883474,1711662656519,-500.0,0.00059999,120]
[320883475,1711662656528,-500.0,0.00059999,120]
[320883476,1711662656537,-500.0,0.00059999,120]
[320883477,1711662656546,-500.0,0.00059999,120]
[320883478,1711662656555,-500.0,0.00059999,120]
[320883479,1711662656564,-500.0,0.00059999,120]
[320883480,1711662656573,-500.0,0.00059999,120]
[320883481,1711662656582,-500.0,0.00059999,120]
[320883482,1711662656591,-561.00452774,0.00059999,120]
[320883483,1711662656599,-500.0,0.00059999,120]
[320883484,1711662656609,-500.0,0.00059999,120]
[320883485,1711662656618,-500.0,0.00059999,120]
[320883486,1711662656628,-500.0,0.00059999,120]
[320883487,1711662656636,-300.0,0.00059999,120]
[320883488,1711662656646,-500.0,0.00059999,120]
[320883489,1711662656655,-51405.53693456,0.0006,2]
[320883490,1711662656664,-767.50939328,0.0006,120]
[320883491,1711662656673,-217485.14119805,0.0006,120]
[320883492,1711662656969,-309.36967729,0.00034941,120]
[320883493,1711662656978,-155.2493403,0.0004842,4]
[320883494,1711662656988,-1431.54315735,0.00052299,4]
[320883495,1711662656997,-261.3101085,0.000523,2]
[320883496,1711662657006,-111.72710846,0.00052337,4]
[320883509,1711662809492,19536.05510294,0.00040447,7]
[320883510,1711662823068,305.50304425,0.00040447,2]
[320883511,1711662828388,63251.07759306,0.00040447,2]
[320883513,1711662854791,5841.25162819,0.0001999,2]
[320883515,1711662874591,721.83547184,0.00025,2]
[320883516,1711662875080,196.02674625,0.00021,2]
[320883517,1711662875113,9947.32191773,0.00021,2]
[320883518,1711662875825,1009.67187183,0.00025,2]
[320883521,1711663050995,-2115.72508144,0.0003801,4]
[320883522,1711663051023,-380.0,0.00038011,2]
[320883523,1711663051050,-919.60868688,0.0003842,4]
[320883524,1711663051076,-545.60249116,0.00038421,4]
[320883525,1711663051104,-154.9690062,0.00038421,4]
[320883526,1711663051130,-210.21946068,0.00038421,4]
[320883527,1711663051158,-4978.20739793,0.00038421,4]
[320883528,1711663051185,-845.75418495,0.00038422,4]
[320883529,1711663051215,-700.00979129,0.00038765,4]
[320883530,1711663051245,-24900.0,0.00038766,2]
[320883531,1711663051276,-154.9690062,0.00039071,4]
[320883532,1711663051305,-2630.71991666,0.00039071,4]
[320883533,1711663051334,-400.0,0.00039072,2]
[320883534,1711663051362,-309.86984272,0.00039081,4]
[320883535,1711663051394,-5000.0,0.00039478,9]
[320883536,1711663051422,-1000.0,0.00039746,2]
[320883537,1711663051449,-1000.0,0.00039746,5]
[320883538,1711663051571,-1049.2184467,0.00039879,4]
[320883539,1711663051597,-155.0,0.0003988,4]
[320883540,1711663051624,-173.43603309,0.00040345,2]
[320883541,1711663051652,-173.43603306,0.00040346,2]
[320883542,1711663051679,-173.43603306,0.00040346,2]
[320883543,1711663051706,-173.43603306,0.00040347,2]
[320883544,1711663051733,-173.43603306,0.00040347,2]
[320883545,1711663051758,-381.13964739,0.00040446,31]
[320883546,1711663051784,-468.68910607,0.00040446,31]
[320883547,1711663051809,-500.0,0.00040446,31]
[320883548,1711663051842,-228.95768999,0.00040446,31]
[320883549,1711663051870,-2550.3,0.00040446,2]
[320883550,1711663051896,-3106.83,0.00040446,2]
[320883551,1711663051981,922.18181985,0.00038009,4]
[320883552,1711663053913,185.4829512,0.00037594,2]
[320883553,1711663069696,-1631.09875134,0.00040446,4]
[320883554,1711663069722,-507.57924318,0.00040446,4]
[320883555,1711663069748,-263.21367063,0.00040446,4]
[320883556,1711663069773,-609.27587751,0.00040446,4]
[320883557,1711663069798,-796.73036463,0.00040446,4]
[320883558,1711663069823,-400.0,0.00040446,2]
[320883559,1711663069848,-5689.37988335,0.00040446,4]
[320883560,1711663070114,267.85986303,0.00040446,4]
[320883561,1711663071474,155.05269535,0.00040446,4]
[320883562,1711663073202,620.69862479,0.00040446,4]
[320883563,1711663505805,9149.47398637,0.00040425,90]
[320883592,1711663833546,-166.666666,0.00038329,2]
[320883593,1711663833555,-1785.96536082,0.00038347,2]
[320883594,1711663833565,-869.55055,0.00039065,2]
[320883595,1711663833574,-1184.659967,0.00039158,120]
[320883596,1711663833584,-171.282353,0.0003922,2]
[320883597,1711663833594,-171.282353,0.0003922,120]
[320883598,1711663833603,-166.666666,0.00039373,2]
[320883599,1711663833612,-200.0,0.00039401,2]
[320883600,1711663833622,-300.115982,0.00039418,2]
[320883601,1711663833631,-171.295321,0.00039528,2]
[320883602,1711663833640,-14410.59229274,0.00039598,2]
[320883607,1711663838690,-997.98588007,0.00039598,2]
[320883608,1711663838750,-2342.75660808,0.00039598,2]
[320883610,1711663840868,-629.1278318,0.00039598,2]
[320883611,1711663840887,-598.0205773,0.00039598,2]
[320883659,1711663846790,-5921.51681001,0.00039598,2]
[320883661,1711663846800,-151.68961489,0.00040344,6]
[320883662,1711663846810,-444.96043963,0.00040406,2]
[320883664,1711663846819,-1000.0,0.00040416,2]
[320883666,1711663846828,-1055.58,0.00040416,5]
[320883669,1711663846839,-166.666666,0.00040418,2]
[320883671,1711663846848,-685.88747989,0.00040423,4]
[320883672,1711663846857,-312.41043857,0.00040424,31]
[320883674,1711663846866,-500.0,0.00040424,31]
[320883676,1711663846875,-180.32180676,0.00040424,31]
[320883679,1711663846885,-493.87523155,0.00040424,31]
[320883680,1711663846894,-13997.88559193,0.00040425,2]
[320883683,1711663846903,-5921.33431972,0.00040425,2]
[320883685,1711663846916,-3296.11035,0.00040425,2]
[320883687,1711663846927,-226746.94519598,0.00040425,2]
[320883742,1711664295102,10000.0,0.00027001,2]
[320883743,1711664662577,10014.08451912,0.0002,9]
[320883745,1711664783945,156.15151479,0.0002,2]
[320883746,1711664787961,19069.41550969,0.0002,2]
[320883747,1711664792642,8884.36039001,0.0002,2]
[320883748,1711664794147,688.82909907,0.0002,2]
[320883749,1711664810093,307.15420012,0.0002,2]
[320883750,1711664824203,1263.68496713,0.00024901,2]
[320883751,1711664927488,-239.66953658,0.000299,2]
[320883752,1711664927520,-1263.68496713,0.00029901,2]
[320883753,1711664927551,-597.4111035,0.00037734,2]
[320883754,1711664927583,-249.502535,0.00037915,2]
[320883755,1711664927615,-166.666666,0.00038058,2]
[320883756,1711664927647,-888.494975,0.00038431,120]
[320883757,1711664927679,-24900.0,0.00038567,2]
[320883758,1711664927710,-157.32074205,0.00038574,9]
[320883759,1711664927746,-167.826086,0.00038674,2]
[320883760,1711664927778,-3872.936632,0.00039727,2]
[320883761,1711664927809,-166.666666,0.00039787,2]
[320883762,1711664927840,-215.75291368,0.000403,2]
[320883763,1711664927879,-2115.94998085,0.00040424,4]
[320883764,1711664927912,-3224.31792975,0.00040425,4]
[320883765,1711664927943,-2662.43,0.00040432,2]
[320883766,1711664927975,-2718.48,0.00040432,2]
[320883767,1711664928008,-2718.48,0.00040432,2]
[320883768,1711664928039,-2718.48,0.00040432,2]
[320883769,1711664928072,-291.56648861,0.00040445,31]
[320883770,1711664928106,-5687.66105341,0.00040446,4]
[320883771,1711664928252,-500.0,0.00041096,31]
[320883772,1711664928295,-500.0,0.00041096,31]
[320883773,1711664928327,-392.42130565,0.00041096,31]
[320883774,1711664928360,-603.67435029,0.00041096,31]
[320883775,1711664928391,-500.0,0.00041096,31]
[320883776,1711664928422,-500.0,0.00041096,31]
[320883777,1711664928455,-500.0,0.00041096,31]
[320883778,1711664928487,-500.0,0.00041096,31]
[320883779,1711664928519,-500.0,0.00041096,31]
[320883780,1711664928550,-500.0,0.00041096,31]
[320883781,1711664928582,-166.666666,0.00041517,2]
[320883782,1711664928612,-166.666666,0.00043246,2]
[320883785,1711664972838,-396.56795667,0.00040432,4]
[320883786,1711664972871,-888.494975,0.00044836,120]
[320883787,1711664972904,-663.49241533,0.00046,2]
[320883788,1711664972937,-153.0,0.00046618,2]
[320883789,1711664972972,-153.0,0.00046618,2]
[320883790,1711664973005,-153.0,0.00046618,2]
[320883791,1711664973038,-10440.5467223,0.00047,4]
[320883828,1711665032427,-1403.68605156,0.00038409,4]
[320883830,1711665032437,-920.79514438,0.0003841,4]
[320883833,1711665032447,-18870.57099068,0.00040416,2]
[320883835,1711665032456,-300.0,0.00040416,2]
[320883836,1711665032466,-18406.93028023,0.00040416,2]
[320883839,1711665032475,-917.77487937,0.00040416,2]
[320883840,1711665032484,-313.60403004,0.00040416,2]
[320883844,1711665032493,-279.4472975,0.00040416,2]
[320883847,1711665032503,-19884.4324747,0.00040416,2]
[320883849,1711665032512,-4269.55167991,0.00040416,2]
[320884088,1711665040257,-5804.45539043,0.00040416,2]
[320884381,1711665043209,-18454.98637913,0.00040416,2]
[320884383,1711665043219,-9881.11121811,0.00040416,2]
[320884385,1711665043228,-2969.12287053,0.00040416,2]
[320884387,1711665043238,-8807.65471044,0.00040416,2]
[320884389,1711665043247,-2441.38738113,0.00040416,2]
[320884391,1711665043256,-151.09999368,0.00040416,2]
[320884393,1711665043266,-9970.69764829,0.00040416,2]
[320884395,1711665043275,-1000.5416889,0.00040416,2]
[320884397,1711665043284,-500.47815674,0.00040416,2]
[320884399,1711665043293,-315.42316343,0.00040416,2]
[320884401,1711665043303,-24462.7843055,0.00040416,2]
[320884403,1711665043313,-326.63473177,0.00040416,2]
[320884405,1711665043322,-800.01119004,0.00040432,4]
[320884407,1711665043331,-153.0,0.00047,2]
[320884409,1711665043340,-153.0,0.00047656,2]
[320884411,1711665043350,-153.0,0.00047656,2]
[320884413,1711665043359,-153.0,0.00047656,2]
[320884415,1711665043368,-153.0,0.00047656,2]
[320884417,1711665043377,-153.0,0.00047656,2]
[320884419,1711665043386,-153.0,0.00047656,2]
[320884421,1711665043396,-153.0,0.00047656,2]
[320884423,1711665043405,-153.0,0.00047656,2]
[320884425,1711665043414,-153.0,0.00047656,2]
[320884427,1711665043423,-153.0,0.00047656,2]
[320884429,1711665043433,-153.0,0.00047656,2]
[320884431,1711665043442,-153.0,0.00047656,2]
[320884433,1711665043451,-153.0,0.00047656,2]
[320884435,1711665043462,-153.0,0.000477,2]
[320884437,1711665043471,-153.0,0.000477,2]
[320884439,1711665043480,-202.0622477,0.00047714,2]
[320884441,1711665043489,-202.0622477,0.00047714,2]
[320884443,1711665043498,-202.0622477,0.00047714,2]
[320884445,1711665043507,-202.0622477,0.00047714,2]
[320884447,1711665043516,-153.0,0.00047714,2]
[320884449,1711665043525,-202.0622477,0.00047714,2]
[320884451,1711665043534,-202.0622477,0.00047714,2]
[320884453,1711665043544,-153.0,0.00047714,2]
[320884455,1711665043553,-202.0622477,0.00047714,2]
[320884457,1711665043562,-153.0,0.00047714,2]
[320884458,1711665043571,-202.0622477,0.00047714,2]
[320884460,1711665043580,-153.0,0.00047714,2]
[320884462,1711665043589,-202.0622477,0.00047714,2]
[320884465,1711665043599,-153.0,0.00047714,2]
[320884466,1711665043608,-202.0622477,0.00047714,2]
[320884468,1711665043617,-153.0,0.00047714,2]
[320884470,1711665043626,-202.0622477,0.00047714,2]
[320884473,1711665043635,-202.0622477,0.00047714,2]
[320884475,1711665043646,-153.0,0.00047714,2]
[320884477,1711665043655,-153.0,0.00047714,2]
[320884479,1711665043664,-153.0,0.00047714,2]
[320884481,1711665043674,-153.0,0.000478,2]
[320884483,1711665043683,-153.0,0.000478,2]
[320884485,1711665043692,-153.0,0.00047985,2]
[320884486,1711665043700,-153.0,0.00047988,2]
[320884488,1711665043713,-153.0,0.00047988,2]
[320884490,1711665043724,-153.0,0.00047988,2]
[320884492,1711665043733,-153.0,0.00047988,2]
[320884494,1711665043742,-153.0,0.00047988,2]
[320884497,1711665043752,-153.0,0.00047988,2]
[320884498,1711665043761,-153.0,0.00047988,2]
[320884500,1711665043770,-153.0,0.00047988,2]
[320884502,1711665043779,-153.0,0.00047988,2]
[320884504,1711665043788,-153.0,0.00047988,2]
[320884507,1711665043800,-153.0,0.00047988,2]
[320884509,1711665043812,-153.0,0.00047988,2]
[320884511,1711665043821,-153.0,0.00047988,2]
[320884513,1711665043831,-153.0,0.00047988,2]
[320884515,1711665043840,-153.0,0.00047988,2]
[320884517,1711665043849,-153.0,0.00047988,2]
[320884519,1711665043858,-153.0,0.00047988,2]
[320884521,1711665043867,-153.0,0.00047988,2]
[320884523,1711665043876,-153.0,0.00047988,2]
[320884525,1711665043885,-153.0,0.00047988,2]
[320884527,1711665043894,-153.0,0.00047988,2]
[320884529,1711665043903,-153.0,0.00047988,2]
[320884531,1711665043912,-153.0,0.00047988,2]
[320884533,1711665043921,-153.0,0.00048204,2]
[320884534,1711665043931,-153.0,0.00048204,2]
[320884537,1711665043940,-153.0,0.00048204,2]
[320884539,1711665043950,-153.0,0.00048204,2]
[320884540,1711665043960,-153.0,0.00048204,2]
[320884542,1711665043969,-153.0,0.00048204,2]
[320884544,1711665043979,-202.0622477,0.00048478,2]
[320884547,1711665043989,-202.0622477,0.00048478,2]
[320884548,1711665043998,-202.0622477,0.00048478,2]
[320884550,1711665044008,-202.0622477,0.00048478,2]
[320884553,1711665044017,-315.61524238,0.00049299,4]
[320884554,1711665044026,-11002.41164998,0.0005,30]
[320884556,1711665044035,-2013.58173674,0.0005,120]
[320887968,1711665196795,-300.0,0.00036984,3]
[320887969,1711665196841,-9251.92580925,0.00036985,4]
[320887970,1711665196887,-9251.92580925,0.00036985,4]
[320887971,1711665262914,-169.230769,0.00036986,2]
[320887972,1711665393899,6512.447415,0.0003,7]
[320887976,1711665820614,211.29953627,0.0004,30]
[320887977,1711665973378,3224.31792975,0.0004,4]
[320887978,1711666029949,421.22832237,0.000379,2]
[320888049,1711666232632,-800.01119004,0.00042899,4]
[320888052,1711666232641,-421.22832237,0.000429,2]
[320888054,1711666232650,-94.41300478,0.000448,2]
[320888060,1711666232695,-121.19370784,0.000448,2]
[320888063,1711666232704,-166.666666,0.00046584,2]
[320888065,1711666232713,-171.295321,0.00047098,2]
[320888067,1711666232722,-153.0,0.000471,2]
[320888069,1711666232731,-306.0,0.000471,2]
[320888071,1711666232740,-153.0,0.00047252,2]
[320888073,1711666232749,-165.76033069,0.00047341,2]
[320888564,1711666237689,6849.0,0.0004,30]
[320888616,1711666238147,-262.3827165,0.00047341,2]
[320888618,1711666238160,-1081.65080209,0.00047341,2]
[320889200,1711666243420,-535.90591792,0.00047341,2]
[320889202,1711666243430,-158.9985112,0.00047487,2]
[320889204,1711666243439,-157.32074205,0.00047487,13]
[320889206,1711666243448,-8638.39735671,0.00047498,2]
[320889445,1711666246178,-16261.60264329,0.00047498,2]
[320889446,1711666246187,-444.247487,0.00047587,120]
[320889447,1711666246196,-249.502535,0.0004765,2]
[320889448,1711666246206,-587.20960001,0.00047799,4]
[320889479,1711666265513,4156.0,0.000191,2]
[320889491,1711666409414,42880.91277357,0.00040007,7]
[320889500,1711666473839,9881.11121811,0.0004,2]
[320889501,1711666473887,18454.98637913,0.0004,2]
[320889502,1711666473967,2969.12287053,0.0004,2]
[320889503,1711666474672,8807.65471044,0.0004,2]
[320889504,1711666474744,2441.38738113,0.0004,2]
[320889505,1711666475259,151.09999368,0.0004,2]
[320889506,1711666475308,297.46395264,0.0002104,15]
[320889507,1711666476443,9413.72467341,0.0004,2]
[320889508,1711666493209,322.01281307,0.00039999,4]
[320889509,1711666497313,212.14744496,0.00039999,4]
[320889510,1711666498204,2497.18936891,0.00039999,4]
[320889511,1711666513953,154.98450155,0.00039999,4]
[320889512,1711666525818,2165.08250161,0.00039999,4]
[320889513,1711666550417,9251.92580925,0.00039999,4]
[320889514,1711666555537,9251.92580925,0.00039999,4]
[320889515,1711666562423,9251.92580925,0.00039999,4]
[320889516,1711666569446,9251.92580925,0.00039999,4]
[320889519,1711666624942,400.0,0.00039999,3]
[320889522,1711666681963,5081.57039187,0.00039999,4]
[320889527,1711666902877,1640.0,0.00037871,2]
[320889528,1711666949161,41509.091047,0.00037871,60]
[320889602,1711667432326,-242.29490915,0.00035446,4]
[320889603,1711667432335,-154.98450155,0.00035447,4]
[320889604,1711667432344,-434.05644894,0.00035447,4]
[320889605,1711667432353,-1454.01616464,0.00035448,4]
[320889606,1711667432363,-1440.27512437,0.0003545,4]
[320889607,1711667432378,-3846.53962379,0.0003545,4]
[320889608,1711667432387,-1500.0,0.00035455,14]
[320889609,1711667432396,-63696.86576882,0.00036249,4]
[320889611,1711667432406,-3872.936632,0.0003625,2]
[320889612,1711667432415,-380.0,0.00036488,2]
[320889613,1711667432425,-1108.75083,0.00036488,120]
[320889614,1711667432434,-200.0,0.00036744,3]
[320889616,1711667432443,-597.4111035,0.00036745,2]
[320889617,1711667432453,-166.666666,0.00037203,2]
[320889619,1711667432462,-6953.33392444,0.00037492,2]
[320889621,1711667432471,-205.35532,0.00037748,2]
[320889622,1711667432481,-545.62674148,0.00037771,2]
[320889623,1711667432490,-5801.41514928,0.00037871,60]
[320889624,1711667432522,-3174.45680044,0.00037871,60]
[320889645,1711667438281,-500.0,0.0003787,15]
[320889646,1711667438291,-500.0,0.0003787,15]
[320889648,1711667438300,-500.0,0.0003787,15]
[320889650,1711667438310,-500.0,0.0003787,15]
[320889652,1711667438319,-500.0,0.0003787,15]
[320889654,1711667438328,-289.81379151,0.0003787,15]
[320889656,1711667438337,-500.0,0.0003787,15]
[320889659,1711667438346,-500.0,0.0003787,15]
[320889662,1711667438357,-262.55970098,0.0003787,15]
[320889665,1711667438366,-500.0,0.0003787,15]
[320889668,1711667438380,-500.0,0.0003787,15]
[320889672,1711667438391,-500.0,0.0003787,15]
[320889673,1711667438400,-500.0,0.0003787,15]
[320889675,1711667438410,-500.0,0.0003787,15]
[320889677,1711667438419,-500.0,0.0003787,15]
[320889679,1711667438428,-500.0,0.0003787,15]
[320889681,1711667438438,-500.0,0.0003787,15]
[320889682,1711667438448,-500.0,0.0003787,15]
[320889684,1711667438458,-500.0,0.0003787,15]
[320889685,1711667438469,-500.0,0.0003787,15]
[320889686,1711667438478,-500.0,0.0003787,15]
[320889687,1711667438488,-500.0,0.0003787,15]
[320889688,1711667438498,-500.0,0.0003787,15]
[320889689,1711667438508,-194.13667473,0.0003787,15]
[320889690,1711667438519,-500.0,0.0003787,15]
[320889691,1711667438530,-500.0,0.0003787,15]
[320889692,1711667438540,-500.0,0.0003787,15]
[320889693,1711667438550,-500.0,0.0003787,15]
[320889694,1711667438559,-500.0,0.0003787,15]
[320889695,1711667438568,-500.0,0.0003787,15]
[320889696,1711667438577,-500.0,0.0003787,15]
[320889697,1711667438586,-500.0,0.0003787,15]
[320889698,1711667438596,-500.0,0.0003787,15]
[320889699,1711667438605,-500.0,0.0003787,15]
[320889700,1711667438616,-500.0,0.0003787,15]
[320889701,1711667438626,-500.0,0.0003787,15]
[320889702,1711667438635,-500.0,0.0003787,15]
[320889703,1711667438645,-500.0,0.0003787,15]
[320889704,1711667438666,-500.0,0.0003787,15]
[320889705,1711667438677,-500.0,0.0003787,15]
[320889706,1711667438688,-500.0,0.0003787,15]
[320889707,1711667438698,-500.0,0.0003787,15]
[320889708,1711667438709,-500.0,0.0003787,15]
[320889709,1711667438719,-500.0,0.0003787,15]
[320889710,1711667438730,-500.0,0.0003787,15]
[320889711,1711667438740,-500.0,0.0003787,15]
[320889712,1711667438750,-500.0,0.0003787,15]
[320889713,1711667438760,-500.0,0.0003787,15]
[320889714,1711667438770,-500.0,0.0003787,15]
[320889715,1711667438781,-500.0,0.0003787,15]
[320889716,1711667438791,-11079.60182885,0.00037871,60]
[320889717,1711667438801,-709.82169103,0.00037885,2]
[320889718,1711667438811,-1194.57153362,0.00037907,2]
[320889719,1711667438821,-545.62674148,0.00038002,2]
[320889720,1711667438832,-166.666666,0.00038217,2]
[320889721,1711667438842,-545.62674148,0.00038233,2]
[320889722,1711667438852,-545.62674148,0.00038463,2]
[320889723,1711667438862,-545.62674148,0.00038694,2]
[320889724,1711667438874,-776.20099837,0.00038796,4]
[320889725,1711667438884,-192.38148075,0.00038895,4]
[320889726,1711667438894,-299.22378644,0.00038895,4]
[320889727,1711667438905,-166.666666,0.00039231,2]
[320889728,1711667438916,-556.97297488,0.00039953,2]
[320889729,1711667438927,-1000.5416889,0.00039953,2]
[320889730,1711667438937,-500.47815674,0.00039953,2]
[320889731,1711667438947,-315.42316343,0.00039953,2]
[320889732,1711667438956,-24462.7843055,0.00039953,2]
[320889733,1711667438969,-326.63473177,0.00039953,2]
[320889734,1711667438980,-166.666666,0.00040246,2]
[320889735,1711667438990,-166.666666,0.0004126,2]
[320889736,1711667439001,-166.666666,0.00042274,2]
[320889737,1711667439011,-1108.75083,0.00042569,120]
[320889738,1711667439022,-1194.57153362,0.00042907,2]
[320889739,1711667439032,-11002.41164998,0.00044,15]
[320889740,1711667439042,-215.75291368,0.000448,2]
[320889741,1711667439051,-287.76018383,0.00045318,4]
[320889742,1711667439060,-513.94567109,0.00045396,4]
[320889743,1711667439069,-167.826086,0.00045619,2]
[320889744,1711667439078,-663.49241533,0.00046,2]
[320889745,1711667439088,-10440.5467223,0.00047,4]
[320889746,1711667439098,-446.63762212,0.00047795,4]
[320889747,1711667439108,-414.75799488,0.00047799,4]
[320889748,1711667439117,-1194.57153362,0.00047907,2]
[320889749,1711667439129,-162.56807558,0.00047993,3]
[320889750,1711667439140,-151.0,0.00048216,7]
[320889751,1711667439149,-151.0,0.00048216,7]
[320889752,1711667439159,-500.0,0.0004823,120]
[320889753,1711667439169,-265.1372965,0.0004823,120]
[320889754,1711667439179,-628.4361805,0.0004823,120]
[320889755,1711667439190,-500.0,0.0004823,120]
[320889756,1711667439200,-392.42130565,0.0004823,120]
[320889757,1711667439210,-500.0,0.0004823,120]
[320889758,1711667439220,-500.0,0.0004823,120]
[320889759,1711667439231,-487.18279685,0.0004823,120]
[320889760,1711667439241,-500.0,0.0004823,120]
[320889761,1711667439250,-603.67435029,0.0004823,120]
[320889762,1711667439259,-500.0,0.0004823,120]
[320889763,1711667439270,-500.0,0.0004823,120]
[320889764,1711667439279,-500.0,0.0004823,120]
[320889765,1711667439290,-314.22468018,0.00048232,4]
[320889766,1711667439301,-843.8019386,0.00048232,4]
[320889767,1711667439311,-260.8239385,0.00048232,4]
[320889768,1711667439321,-155.09283284,0.00048232,4]
[320889769,1711667439332,-982.14046804,0.00048232,4]
[320889770,1711667439342,-2417.97152164,0.00048232,4]
[320889771,1711667439353,-389.66171642,0.00048232,4]
[320889772,1711667439363,-1108.75083,0.0004865,120]
[320889773,1711667439377,-305.999999,0.00048868,2]
[320889774,1711667439389,-153.0,0.0004889,2]
[320889775,1711667439399,-153.0,0.0004889,2]
[320889776,1711667439409,-153.0,0.00049112,2]
[320889777,1711667439420,-153.0,0.00049112,2]
[320889778,1711667439430,-153.0,0.00049112,2]
[320889779,1711667439439,-153.0,0.00049112,2]
[320889780,1711667439450,-153.0,0.00049112,2]
[320889781,1711667439462,-24900.0,0.00049701,2]
[320889782,1711667439472,-153.0,0.00049712,2]
[320889783,1711667439482,-153.0,0.00049712,2]
[320889784,1711667439493,-151.0,0.00049934,7]
[320889785,1711667439503,-151.0,0.00049934,7]
[320889786,1711667439514,-153.0,0.00049934,2]
[320889787,1711667439524,-153.0,0.00049934,2]
[320889788,1711667439534,-153.0,0.00049934,2]
[320889789,1711667439546,-153.0,0.00049934,2]
[320889790,1711667439556,-153.0,0.00049934,2]
[320889791,1711667439565,-153.0,0.00049934,2]
[320889792,1711667439574,-153.0,0.00049934,2]
[320889793,1711667439583,-153.0,0.00049934,2]
[320889794,1711667439592,-153.0,0.00049934,2]
[320889795,1711667439601,-153.0,0.00049934,2]
[320889796,1711667439610,-153.0,0.00049934,2]
[320889797,1711667439619,-153.0,0.00049934,2]
[320889798,1711667439628,-153.0,0.00049934,2]
[320889799,1711667439637,-153.0,0.00049934,2]
[320889800,1711667439744,-153.0,0.00049934,2]
[320889801,1711667439754,-153.0,0.00049934,2]
[320889802,1711667439763,-153.0,0.00049934,2]
[320889804,1711667439771,-153.0,0.00049934,2]
[320889806,1711667439780,-153.0,0.00049978,2]
[320889808,1711667439789,-8488.80713685,0.0005,120]
[320889809,1711667439798,-167.224876,0.0005,2]
[320889812,1711667439808,-153.0,0.00050478,2]
[320889813,1711667439818,-153.0,0.00050534,2]
[320889817,1711667439829,-153.0,0.00050534,2]
[320889820,1711667439838,-153.0,0.00050534,2]
[320889823,1711667439848,-153.0,0.00050534,2]
[320889826,1711667439858,-153.0,0.00050534,2]
[320889829,1711667439868,-153.0,0.00050534,2]
[320889831,1711667439877,-153.0,0.00050534,2]
[320889834,1711667439887,-153.0,0.00050534,2]
[320889837,1711667439896,-153.0,0.00050534,2]
[320889840,1711667439905,-153.0,0.00050534,2]
[320889843,1711667439914,-153.0,0.00050534,2]
[320889846,1711667439924,-153.0,0.0005069,2]
[320889849,1711667439933,-153.0,0.0005069,2]
[320889851,1711667439943,-202.0622477,0.00051184,2]
[320889854,1711667439952,-151.0,0.00051512,7]
[320889858,1711667439964,-153.0,0.00051512,2]
[320889860,1711667439973,-153.0,0.00051512,2]